[Event "Titled Tuesday Blitz April 19 Early 2022"]
[White "Shyaamnikhil P"]
[Black "Martic, Ivan"]
[WhiteFideId "5024218"]
[BlackFideId "929301"]
[WhiteElo "2329"]
[BlackElo "2317"]
[Result "1-0"]
[Round "07"]
[TimeControl "180+1"]
[Date "2022.04.19"]
[WhiteClock "0:00:13"]
[BlackClock "0:00:02"]

1. Nc3 {[%clk 0:02:40]}  c5 {[%clk 0:02:57]} 2. e4 {[%clk 0:02:40]}  Nc6 {[%clk 0:02:56]} 3. Bb5 {[%clk 0:02:39]}  Nd4 {[%clk 0:02:55]} 4. Bc4 {[%clk 0:02:36]}  a6 {[%clk 0:02:53]} 5. Nge2 {[%clk 0:02:34]}  b5 {[%clk 0:02:53]} 6. Bd5 {[%clk 0:02:33]}  Rb8 {[%clk 0:02:53]} 7. Nxd4 {[%clk 0:02:33]}  cxd4 {[%clk 0:02:54]} 8. Ne2 {[%clk 0:02:33]}  Nf6 {[%clk 0:02:54]} 9. Bb3 {[%clk 0:02:30]}  Nxe4 {[%clk 0:02:49]} 10. d3 {[%clk 0:02:29]}  Nc5 {[%clk 0:02:35]} 11. Nxd4 {[%clk 0:02:28]}  e6 {[%clk 0:02:33]} 12. O-O {[%clk 0:02:27]}  Be7 {[%clk 0:02:29]} 13. Bf4 {[%clk 0:02:26]}  Rb6 {[%clk 0:02:16]} 14. Qf3 {[%clk 0:02:21]}  O-O {[%clk 0:02:08]} 15. Qg3 {[%clk 0:02:09]}  d6 {[%clk 0:02:05]} 16. Nf3 {[%clk 0:02:07]}  Kh8 {[%clk 0:01:49]} 17. Rfe1 {[%clk 0:01:54]}  Nxb3 {[%clk 0:01:42]} 18. axb3 {[%clk 0:01:52]}  e5 {[%clk 0:01:42]} 19. Be3 {[%clk 0:01:52]}  Rc6 {[%clk 0:01:39]} 20. c4 {[%clk 0:01:51]}  f5 {[%clk 0:01:34]} 21. Bg5 {[%clk 0:01:51]}  bxc4 {[%clk 0:01:25]} 22. Qh4 {[%clk 0:01:47]}  Bf6 {[%clk 0:01:20]} 23. bxc4 {[%clk 0:01:43]}  Rb6 {[%clk 0:01:14]} 24. Bxf6 {[%clk 0:01:36]}  gxf6 {[%clk 0:01:07]} 25. Reb1 {[%clk 0:01:24]}  Rb3 {[%clk 0:01:03]} 26. Ra3 {[%clk 0:01:23]}  Qb6 {[%clk 0:00:55]} 27. Qh6 {[%clk 0:01:22]}  Rf7 {[%clk 0:00:50]} 28. Qe3 {[%clk 0:01:20]}  Qb8 {[%clk 0:00:41]} 29. Nd2 {[%clk 0:00:56]}  Rxb2 {[%clk 0:00:27]} 30. Rxb2 {[%clk 0:00:57]}  Qxb2 {[%clk 0:00:28]} 31. Rb3 {[%clk 0:00:57]}  Qc1+ {[%clk 0:00:21]} 32. Nf1 {[%clk 0:00:57]}  Qxe3 {[%clk 0:00:19]} 33. Nxe3 {[%clk 0:00:58]}  Be6 {[%clk 0:00:17]} 34. Rb6 {[%clk 0:00:55]}  f4 {[%clk 0:00:16]} 35. Nc2 {[%clk 0:00:52]}  Bf5 {[%clk 0:00:14]} 36. Ne1 {[%clk 0:00:50]}  Ra7 {[%clk 0:00:13]} 37. Rxd6 {[%clk 0:00:38]}  Kg7 {[%clk 0:00:13]} 38. f3 {[%clk 0:00:33]}  a5 {[%clk 0:00:13]} 39. Nc2 {[%clk 0:00:31]}  a4 {[%clk 0:00:13]} 40. Na3 {[%clk 0:00:31]}  Rb7 {[%clk 0:00:13]} 41. Nb5 {[%clk 0:00:32]}  Rd7 {[%clk 0:00:10]} 42. Rxd7+ {[%clk 0:00:26]}  Bxd7 {[%clk 0:00:11]} 43. Kf2 {[%clk 0:00:19]}  Bxb5 {[%clk 0:00:08]} 44. cxb5 {[%clk 0:00:20]}  a3 {[%clk 0:00:09]} 45. b6 {[%clk 0:00:21]}  a2 {[%clk 0:00:10]} 46. b7 {[%clk 0:00:21]}  a1=Q {[%clk 0:00:11]} 47. b8=Q {[%clk 0:00:21]}  Qa2+ {[%clk 0:00:11]} 48. Kf1 {[%clk 0:00:21]}  Qa1+ {[%clk 0:00:11]} 49. Ke2 {[%clk 0:00:21]}  Qa2+ {[%clk 0:00:11]} 50. Kf1 {[%clk 0:00:20]}  Qa1+ {[%clk 0:00:11]} 51. Kf2 {[%clk 0:00:20]}  Qd4+ {[%clk 0:00:11]} 52. Kf1 {[%clk 0:00:17]}  Qxd3+ {[%clk 0:00:11]} 53. Kf2 {[%clk 0:00:18]}  Qe3+ {[%clk 0:00:11]} 54. Kf1 {[%clk 0:00:18]}  Qd3+ {[%clk 0:00:12]} 55. Kf2 {[%clk 0:00:19]}  Qd2+ {[%clk 0:00:12]} 56. Kf1 {[%clk 0:00:19]}  Qd7 {[%clk 0:00:13]} 57. Qb3 {[%clk 0:00:17]}  h5 {[%clk 0:00:12]} 58. h3 {[%clk 0:00:16]}  Kg6 {[%clk 0:00:12]} 59. Kg1 {[%clk 0:00:17]}  Kg7 {[%clk 0:00:12]} 60. Kh2 {[%clk 0:00:17]}  h4 {[%clk 0:00:11]} 61. Qc4 {[%clk 0:00:15]}  Qe7 {[%clk 0:00:10]} 62. Qd5 {[%clk 0:00:15]}  Qf7 {[%clk 0:00:11]} 63. Qe4 {[%clk 0:00:14]}  Qg6 {[%clk 0:00:11]} 64. Qb7+ {[%clk 0:00:15]}  Kh6 {[%clk 0:00:11]} 65. Qc6 {[%clk 0:00:14]}  f5 {[%clk 0:00:10]} 66. Qc7 {[%clk 0:00:14]}  Qg3+ {[%clk 0:00:08]} 67. Kh1 {[%clk 0:00:14]}  Qe1+ {[%clk 0:00:09]} 68. Kh2 {[%clk 0:00:14]}  Qg3+ {[%clk 0:00:10]} 69. Kh1 {[%clk 0:00:14]}  Qg7 {[%clk 0:00:10]} 70. Qd6+ {[%clk 0:00:14]}  Kg5 {[%clk 0:00:09]} 71. Qd8+ {[%clk 0:00:13]}  Kg6 {[%clk 0:00:08]} 72. Qe8+ {[%clk 0:00:14]}  Kh6 {[%clk 0:00:06]} 73. Qe6+ {[%clk 0:00:14]}  Kg5 {[%clk 0:00:04]} 74. Qe8 {[%clk 0:00:14]}  Qg6 {[%clk 0:00:02]} 75. Qxe5 {[%clk 0:00:13]} 1-0


[Site "https://www.chess.com"]

[Event "Titled Tuesday Blitz April 19 Early 2022"]
[White "Smietanska, Wiktoria"]
[Black "Dorokhin, Mykhailo"]
[WhiteFideId "21869359"]
[BlackFideId "14114178"]
[WhiteElo "1893"]
[BlackElo "2280"]
[Result "0-1"]
[Round "07"]
[TimeControl "180+1"]
[Date "2022.04.19"]
[WhiteClock "0:00:37"]
[BlackClock "0:01:40"]

1. c4 {[%clk 0:03:00]}  c6 {[%clk 0:03:00]} 2. Nf3 {[%clk 0:02:56]}  d5 {[%clk 0:03:00]} 3. e3 {[%clk 0:02:56]}  Nf6 {[%clk 0:03:01]} 4. Nc3 {[%clk 0:02:56]}  Bg4 {[%clk 0:03:00]} 5. Be2 {[%clk 0:02:55]}  e6 {[%clk 0:03:00]} 6. O-O {[%clk 0:02:55]}  Be7 {[%clk 0:03:00]} 7. d4 {[%clk 0:02:52]}  O-O {[%clk 0:02:59]} 8. b3 {[%clk 0:02:52]}  Nbd7 {[%clk 0:02:57]} 9. Bb2 {[%clk 0:02:52]}  a6 {[%clk 0:02:54]} 10. h3 {[%clk 0:02:51]}  Bh5 {[%clk 0:02:54]} 11. Rc1 {[%clk 0:02:49]}  Re8 {[%clk 0:02:53]} 12. Qd2 {[%clk 0:02:46]}  Bg6 {[%clk 0:02:52]} 13. Bd3 {[%clk 0:02:38]}  Ne4 {[%clk 0:02:51]} 14. Qc2 {[%clk 0:02:32]}  Nxc3 {[%clk 0:02:50]} 15. Qxc3 {[%clk 0:02:27]}  Bxd3 {[%clk 0:02:49]} 16. Qxd3 {[%clk 0:02:28]}  Nf6 {[%clk 0:02:46]} 17. Ne5 {[%clk 0:02:28]}  Bf8 {[%clk 0:02:44]} 18. f3 {[%clk 0:02:27]}  Qa5 {[%clk 0:02:42]} 19. e4 {[%clk 0:02:27]}  Qxa2 {[%clk 0:02:38]} 20. Qc3 {[%clk 0:02:23]}  Bb4 {[%clk 0:02:33]} 21. Qxb4 {[%clk 0:02:13]}  Qxb2 {[%clk 0:02:33]} 22. Rcd1 {[%clk 0:02:03]}  a5 {[%clk 0:02:19]} 23. Qxb7 {[%clk 0:01:58]}  Rf8 {[%clk 0:02:18]} 24. Qxc6 {[%clk 0:01:56]}  Qxb3 {[%clk 0:02:17]} 25. cxd5 {[%clk 0:01:54]}  exd5 {[%clk 0:02:17]} 26. exd5 {[%clk 0:01:54]}  Qxd5 {[%clk 0:02:16]} 27. Qc7 {[%clk 0:01:50]}  Rfc8 {[%clk 0:02:05]} 28. Qb6 {[%clk 0:01:49]}  a4 {[%clk 0:02:03]} 29. Rc1 {[%clk 0:01:46]}  Rxc1 {[%clk 0:02:01]} 30. Rxc1 {[%clk 0:01:47]}  a3 {[%clk 0:02:01]} 31. Ra1 {[%clk 0:01:33]}  a2 {[%clk 0:02:00]} 32. Qc5 {[%clk 0:01:24]}  Qb3 {[%clk 0:01:56]} 33. Qc6 {[%clk 0:01:17]}  Qb1+ {[%clk 0:01:51]} 34. Kh2 {[%clk 0:01:16]}  Rf8 {[%clk 0:01:43]} 35. Qc3 {[%clk 0:01:03]}  Nd5 {[%clk 0:01:43]} 36. Qc1 {[%clk 0:00:56]}  Qxc1 {[%clk 0:01:41]} 37. Rxc1 {[%clk 0:00:57]}  Ra8 {[%clk 0:01:41]} 38. Ra1 {[%clk 0:00:55]}  Nb4 {[%clk 0:01:41]} 39. Nc4 {[%clk 0:00:43]}  Nc2 {[%clk 0:01:40]} 40. Rc1 {[%clk 0:00:37]}  a1=Q {[%clk 0:01:40]} 0-1


[Site "https://www.chess.com"]

[Event "Titled Tuesday Blitz April 19 Early 2022"]
[White "Sovetbekova, Nurai"]
[Black "Mohammadian, Mohammad"]
[WhiteFideId "13801910"]
[BlackFideId "12566055"]
[WhiteElo "1538"]
[BlackElo "1544"]
[Result "1-0"]
[Round "07"]
[TimeControl "180+1"]
[Date "2022.04.19"]
[WhiteClock "0:01:56"]
[BlackClock "0:00:45"]

1. d4 {[%clk 0:03:00]}  Nf6 {[%clk 0:02:55]} 2. c4 {[%clk 0:03:00]}  g6 {[%clk 0:02:53]} 3. g3 {[%clk 0:03:00]}  Bg7 {[%clk 0:02:53]} 4. Bg2 {[%clk 0:03:01]}  O-O {[%clk 0:02:51]} 5. Nf3 {[%clk 0:03:01]}  b6 {[%clk 0:02:47]} 6. O-O {[%clk 0:02:54]}  Bb7 {[%clk 0:02:47]} 7. Nc3 {[%clk 0:02:53]}  d5 {[%clk 0:02:46]} 8. cxd5 {[%clk 0:02:50]}  Nxd5 {[%clk 0:02:46]} 9. Nxd5 {[%clk 0:02:50]}  Qxd5 {[%clk 0:02:44]} 10. Nh4 {[%clk 0:02:46]}  Qxd4 {[%clk 0:02:35]} 11. Qxd4 {[%clk 0:02:43]}  Bxd4 {[%clk 0:02:13]} 12. Bxb7 {[%clk 0:02:41]}  Nd7 {[%clk 0:02:12]} 13. Bxa8 {[%clk 0:02:40]}  Rxa8 {[%clk 0:02:11]} 14. Rd1 {[%clk 0:02:40]}  e5 {[%clk 0:02:01]} 15. e3 {[%clk 0:02:38]}  g5 {[%clk 0:01:59]} 16. Nf5 {[%clk 0:02:35]}  Nf6 {[%clk 0:01:49]} 17. exd4 {[%clk 0:02:29]}  exd4 {[%clk 0:01:49]} 18. Bxg5 {[%clk 0:02:26]}  Ne4 {[%clk 0:01:44]} 19. Bh6 {[%clk 0:02:22]}  f6 {[%clk 0:01:44]} 20. Rxd4 {[%clk 0:02:20]}  Nc5 {[%clk 0:01:40]} 21. Rad1 {[%clk 0:02:16]}  Kf7 {[%clk 0:01:40]} 22. Rd8 {[%clk 0:02:15]}  Rxd8 {[%clk 0:01:36]} 23. Rxd8 {[%clk 0:02:16]}  Kg6 {[%clk 0:01:36]} 24. g4 {[%clk 0:02:04]}  Ne4 {[%clk 0:01:32]} 25. Rd7 {[%clk 0:01:58]}  Nc5 {[%clk 0:00:45]} 26. Rg7# {[%clk 0:01:56]} 1-0


[Site "https://www.chess.com"]

[Event "Titled Tuesday Blitz April 19 Early 2022"]
[White "Svane, Frederik"]
[Black "Demchenko, Anton"]
[WhiteFideId "12923044"]
[BlackFideId "4160258"]
[WhiteElo "2459"]
[BlackElo "2539"]
[Result "0-1"]
[Round "07"]
[TimeControl "180+1"]
[Date "2022.04.19"]
[WhiteClock "0:00:05"]
[BlackClock "0:00:06"]

1. e4 {[%clk 0:01:48]}  e5 {[%clk 0:02:58]} 2. Nf3 {[%clk 0:01:48]}  Nc6 {[%clk 0:02:58]} 3. Bb5 {[%clk 0:01:49]}  a6 {[%clk 0:02:57]} 4. Ba4 {[%clk 0:01:50]}  Nge7 {[%clk 0:02:57]} 5. Nc3 {[%clk 0:01:50]}  d6 {[%clk 0:02:57]} 6. d4 {[%clk 0:01:46]}  b5 {[%clk 0:02:54]} 7. Bb3 {[%clk 0:01:46]}  Nxd4 {[%clk 0:02:55]} 8. Nxd4 {[%clk 0:01:47]}  exd4 {[%clk 0:02:55]} 9. Nd5 {[%clk 0:01:42]}  c5 {[%clk 0:02:39]} 10. a4 {[%clk 0:00:58]}  c4 {[%clk 0:02:30]} 11. Ba2 {[%clk 0:00:58]}  Nxd5 {[%clk 0:02:30]} 12. exd5 {[%clk 0:00:59]}  Qe7+ {[%clk 0:02:08]} 13. Kf1 {[%clk 0:00:50]}  Qf6 {[%clk 0:02:03]} 14. Bd2 {[%clk 0:00:38]}  Bb7 {[%clk 0:01:23]} 15. h4 {[%clk 0:00:37]}  Bxd5 {[%clk 0:01:10]} 16. Bg5 {[%clk 0:00:36]}  Qe5 {[%clk 0:00:41]} 17. Qd2 {[%clk 0:00:35]}  Kd7 {[%clk 0:00:37]} 18. Re1 {[%clk 0:00:30]}  Qf5 {[%clk 0:00:32]} 19. Qxd4 {[%clk 0:00:25]}  h6 {[%clk 0:00:24]} 20. Rh3 {[%clk 0:00:15]}  Bc6 {[%clk 0:00:13]} 21. Bf4 {[%clk 0:00:10]}  Qd5 {[%clk 0:00:12]} 22. Qxd5 {[%clk 0:00:05]}  Bxd5 {[%clk 0:00:13]} 23. Rg3 {[%clk 0:00:06]}  Be6 {[%clk 0:00:12]} 24. Rd1 {[%clk 0:00:06]}  Kc6 {[%clk 0:00:12]} 25. b3 {[%clk 0:00:06]}  d5 {[%clk 0:00:12]} 26. bxc4 {[%clk 0:00:05]}  bxc4 {[%clk 0:00:12]} 27. c3 {[%clk 0:00:05]}  g6 {[%clk 0:00:11]} 28. Be5 {[%clk 0:00:05]}  Rg8 {[%clk 0:00:10]} 29. Bb1 {[%clk 0:00:05]}  h5 {[%clk 0:00:09]} 30. Re3 {[%clk 0:00:04]}  Bc5 {[%clk 0:00:09]} 31. Bd4 {[%clk 0:00:03]}  Rab8 {[%clk 0:00:09]} 32. Bc2 {[%clk 0:00:03]}  Rb2 {[%clk 0:00:09]} 33. Re2 {[%clk 0:00:04]}  Bxd4 {[%clk 0:00:09]} 34. Rxd4 {[%clk 0:00:05]}  Rgb8 {[%clk 0:00:09]} 35. f3 {[%clk 0:00:05]}  Kc5 {[%clk 0:00:09]} 36. g4 {[%clk 0:00:05]}  Ra2 {[%clk 0:00:06]} 37. gxh5 {[%clk 0:00:05]}  gxh5 {[%clk 0:00:07]} 38. Kf2 {[%clk 0:00:05]}  Rbb2 {[%clk 0:00:07]} 39. Rdd2 {[%clk 0:00:06]}  Ra3 {[%clk 0:00:07]} 40. f4 {[%clk 0:00:04]}  Rxc3 {[%clk 0:00:06]} 41. f5 {[%clk 0:00:04]}  Bd7 {[%clk 0:00:06]} 42. Rxd5+ {[%clk 0:00:03]}  Kxd5 {[%clk 0:00:06]} 43. Be4+ {[%clk 0:00:03]}  Kd4 {[%clk 0:00:06]} 44. Rxb2 {[%clk 0:00:04]}  Kxe4 {[%clk 0:00:07]} 45. Re2+ {[%clk 0:00:05]}  Kxf5 {[%clk 0:00:07]} 46. Rd2 {[%clk 0:00:06]}  Be6 {[%clk 0:00:07]} 47. Rd6 {[%clk 0:00:06]}  a5 {[%clk 0:00:05]} 48. Ra6 {[%clk 0:00:05]}  Ra3 {[%clk 0:00:05]} 49. Rxa5+ {[%clk 0:00:06]}  Kg4 {[%clk 0:00:06]} 50. Ke2 {[%clk 0:00:03]}  Kxh4 {[%clk 0:00:06]} 51. Kd2 {[%clk 0:00:03]}  Kg4 {[%clk 0:00:07]} 52. Ra8 {[%clk 0:00:03]}  c3+ {[%clk 0:00:07]} 53. Kc2 {[%clk 0:00:03]}  Bf5+ {[%clk 0:00:07]} 54. Kd1 {[%clk 0:00:04]}  c2+ {[%clk 0:00:07]} 55. Kd2 {[%clk 0:00:05]}  Ra1 {[%clk 0:00:06]} 56. Rc8 {[%clk 0:00:05]}  Rd1+ {[%clk 0:00:05]} 57. Ke2 {[%clk 0:00:05]}  c1=Q {[%clk 0:00:06]} 0-1


[Site "https://www.chess.com"]

[Event "Titled Tuesday Blitz April 19 Early 2022"]
[White "Tanenbaum, Zachary"]
[Black "Vlassov, Nikolai"]
[WhiteFideId "2060850"]
[BlackFideId "4103360"]
[WhiteElo "2168"]
[BlackElo "2407"]
[Result "1-0"]
[Round "07"]
[TimeControl "180+1"]
[Date "2022.04.19"]
[WhiteClock "0:01:12"]
[BlackClock "0:00:13"]

1. e4 {[%clk 0:02:59]}  Nc6 {[%clk 0:02:59]} 2. Nf3 {[%clk 0:02:59]}  d5 {[%clk 0:02:59]} 3. exd5 {[%clk 0:02:59]}  Qxd5 {[%clk 0:03:00]} 4. Nc3 {[%clk 0:02:59]}  Qa5 {[%clk 0:03:00]} 5. d4 {[%clk 0:02:59]}  Bg4 {[%clk 0:03:00]} 6. Bb5 {[%clk 0:02:58]}  O-O-O {[%clk 0:03:00]} 7. Bxc6 {[%clk 0:02:58]}  bxc6 {[%clk 0:03:01]} 8. Qd3 {[%clk 0:02:51]}  c5 {[%clk 0:02:58]} 9. O-O {[%clk 0:02:44]}  Bxf3 {[%clk 0:02:51]} 10. Qxf3 {[%clk 0:02:44]}  cxd4 {[%clk 0:02:52]} 11. Rd1 {[%clk 0:02:35]}  e5 {[%clk 0:02:43]} 12. Qxf7 {[%clk 0:02:09]}  Nf6 {[%clk 0:02:42]} 13. Bg5 {[%clk 0:02:04]}  Bd6 {[%clk 0:02:12]} 14. Bxf6 {[%clk 0:02:02]}  gxf6 {[%clk 0:02:06]} 15. Ne4 {[%clk 0:01:57]}  Rhf8 {[%clk 0:01:50]} 16. Qe6+ {[%clk 0:01:56]}  Kb7 {[%clk 0:01:44]} 17. Nxf6 {[%clk 0:01:50]}  Qb6 {[%clk 0:01:14]} 18. Nd7 {[%clk 0:01:48]}  Rxd7 {[%clk 0:01:07]} 19. Qxd7 {[%clk 0:01:49]}  e4 {[%clk 0:01:07]} 20. Qxh7 {[%clk 0:01:35]}  e3 {[%clk 0:00:55]} 21. fxe3 {[%clk 0:01:34]}  dxe3 {[%clk 0:00:54]} 22. Qe4+ {[%clk 0:01:34]}  Kb8 {[%clk 0:00:51]} 23. Kh1 {[%clk 0:01:34]}  Rf4 {[%clk 0:00:18]} 24. Rxd6 {[%clk 0:01:12]}  Rxe4 {[%clk 0:00:16]} 25. Rxb6+ {[%clk 0:01:12]}  axb6 {[%clk 0:00:16]} 26. Kg1 {[%clk 0:01:12]}  Kb7 {[%clk 0:00:15]} 27. Kf1 {[%clk 0:01:11]}  Kc6 {[%clk 0:00:16]} 28. Ke2 {[%clk 0:01:11]}  Kd5 {[%clk 0:00:15]} 29. Rd1+ {[%clk 0:01:12]}  Kc4 {[%clk 0:00:13]} 30. Rd3 {[%clk 0:01:12]} 1-0


[Site "https://www.chess.com"]

[Event "Titled Tuesday Blitz April 19 Early 2022"]
[White "Tasev, Dejan"]
[Black "Zemlyanskii, Ivan"]
[WhiteFideId "936618"]
[BlackFideId "24249971"]
[WhiteElo "2253"]
[BlackElo "1759"]
[Result "1-0"]
[Round "07"]
[TimeControl "180+1"]
[Date "2022.04.19"]
[WhiteClock "0:00:16"]
[BlackClock "0:00:03"]

1. e4 {[%clk 0:02:59]}  c5 {[%clk 0:02:59]} 2. Nf3 {[%clk 0:02:59]}  d6 {[%clk 0:02:59]} 3. d4 {[%clk 0:02:59]}  cxd4 {[%clk 0:03:00]} 4. Nxd4 {[%clk 0:03:00]}  Nf6 {[%clk 0:03:01]} 5. Nc3 {[%clk 0:03:00]}  a6 {[%clk 0:03:01]} 6. Bc4 {[%clk 0:03:00]}  e6 {[%clk 0:02:58]} 7. Bb3 {[%clk 0:03:00]}  b5 {[%clk 0:02:58]} 8. a3 {[%clk 0:02:59]}  Bb7 {[%clk 0:02:55]} 9. f3 {[%clk 0:02:59]}  Nbd7 {[%clk 0:02:54]} 10. Be3 {[%clk 0:02:59]}  Qc7 {[%clk 0:02:50]} 11. Qd2 {[%clk 0:02:57]}  Nc5 {[%clk 0:02:50]} 12. Ba2 {[%clk 0:02:55]}  Rc8 {[%clk 0:02:45]} 13. g4 {[%clk 0:02:54]}  Be7 {[%clk 0:02:38]} 14. O-O-O {[%clk 0:02:52]}  Nfd7 {[%clk 0:02:22]} 15. h4 {[%clk 0:02:48]}  Ne5 {[%clk 0:02:20]} 16. h5 {[%clk 0:02:47]}  Nc4 {[%clk 0:01:58]} 17. Bxc4 {[%clk 0:02:45]}  bxc4 {[%clk 0:01:59]} 18. g5 {[%clk 0:02:45]}  Ba8 {[%clk 0:01:23]} 19. g6 {[%clk 0:02:41]}  fxg6 {[%clk 0:01:20]} 20. hxg6 {[%clk 0:02:40]}  h5 {[%clk 0:01:20]} 21. Qg2 {[%clk 0:02:26]}  Rb8 {[%clk 0:01:06]} 22. Rd2 {[%clk 0:02:03]}  Qb7 {[%clk 0:01:01]} 23. Nd1 {[%clk 0:02:01]}  c3 {[%clk 0:00:58]} 24. Rf2 {[%clk 0:01:35]}  cxb2+ {[%clk 0:00:57]} 25. Kb1 {[%clk 0:01:34]}  Qd7 {[%clk 0:00:51]} 26. Nxb2 {[%clk 0:01:06]}  Na4 {[%clk 0:00:44]} 27. Nb3 {[%clk 0:01:02]}  Bf6 {[%clk 0:00:42]} 28. Nd1 {[%clk 0:00:49]}  d5 {[%clk 0:00:38]} 29. Rd2 {[%clk 0:00:45]}  Qc7 {[%clk 0:00:30]} 30. Qe2 {[%clk 0:00:40]}  Qc4 {[%clk 0:00:25]} 31. Qd3 {[%clk 0:00:36]}  Qc7 {[%clk 0:00:18]} 32. Qxa6 {[%clk 0:00:36]}  Bc6 {[%clk 0:00:18]} 33. exd5 {[%clk 0:00:34]}  exd5 {[%clk 0:00:15]} 34. Bf4 {[%clk 0:00:27]}  Qb7 {[%clk 0:00:13]} 35. Re1+ {[%clk 0:00:26]}  Kd7 {[%clk 0:00:11]} 36. Qxb7+ {[%clk 0:00:23]}  Rxb7 {[%clk 0:00:12]} 37. Ka2 {[%clk 0:00:23]}  Ra8 {[%clk 0:00:11]} 38. Be5 {[%clk 0:00:22]}  Re8 {[%clk 0:00:08]} 39. Rde2 {[%clk 0:00:22]}  Bxe5 {[%clk 0:00:06]} 40. Rxe5 {[%clk 0:00:23]}  Rxe5 {[%clk 0:00:06]} 41. Rxe5 {[%clk 0:00:24]}  h4 {[%clk 0:00:06]} 42. Rh5 {[%clk 0:00:24]}  Bb5 {[%clk 0:00:04]} 43. Rxh4 {[%clk 0:00:23]}  Bc4 {[%clk 0:00:05]} 44. Rh7 {[%clk 0:00:22]}  Ke6 {[%clk 0:00:06]} 45. Rh8 {[%clk 0:00:22]}  Kf6 {[%clk 0:00:06]} 46. Rd8 {[%clk 0:00:21]}  Kxg6 {[%clk 0:00:05]} 47. Rd6+ {[%clk 0:00:21]}  Kf7 {[%clk 0:00:05]} 48. Ne3 {[%clk 0:00:21]}  Nc3+ {[%clk 0:00:04]} 49. Kb2 {[%clk 0:00:21]}  Na4+ {[%clk 0:00:04]} 50. Kc1 {[%clk 0:00:22]}  Bxb3 {[%clk 0:00:05]} 51. cxb3 {[%clk 0:00:21]}  Rxb3 {[%clk 0:00:05]} 52. Nxd5 {[%clk 0:00:22]}  Rxf3 {[%clk 0:00:06]} 53. Ra6 {[%clk 0:00:21]}  Nc5 {[%clk 0:00:06]} 54. Ra7+ {[%clk 0:00:21]}  Ke6 {[%clk 0:00:07]} 55. Nc7+ {[%clk 0:00:20]}  Ke5 {[%clk 0:00:07]} 56. Ra5 {[%clk 0:00:20]}  Kd4 {[%clk 0:00:07]} 57. Nb5+ {[%clk 0:00:19]}  Kc4 {[%clk 0:00:05]} 58. Nd6+ {[%clk 0:00:19]}  Kd4 {[%clk 0:00:06]} 59. Nb5+ {[%clk 0:00:18]}  Kd3 {[%clk 0:00:06]} 60. Kb2 {[%clk 0:00:16]}  Rf2+ {[%clk 0:00:06]} 61. Kb1 {[%clk 0:00:16]}  Nb3 {[%clk 0:00:05]} 62. Ra8 {[%clk 0:00:15]}  g5 {[%clk 0:00:05]} 63. Rd8+ {[%clk 0:00:15]}  Kc4 {[%clk 0:00:05]} 64. Nd6+ {[%clk 0:00:15]}  Kc5 {[%clk 0:00:05]} 65. Ne4+ {[%clk 0:00:15]}  Kc4 {[%clk 0:00:05]} 66. Nxf2 {[%clk 0:00:16]}  Nc5 {[%clk 0:00:03]} 67. Ng4 {[%clk 0:00:16]}  Kb5 {[%clk 0:00:03]} 68. Kb2 {[%clk 0:00:16]} 1-0


[Site "https://www.chess.com"]

[Event "Titled Tuesday Blitz April 19 Early 2022"]
[White "Thomas, Anysia"]
[Black "Clarke, Brandon G I"]
[WhiteFideId "670472"]
[BlackFideId "400319"]
[WhiteElo "2002"]
[BlackElo "2414"]
[Result "0-1"]
[Round "07"]
[TimeControl "180+1"]
[Date "2022.04.19"]
[WhiteClock "0:00:10"]
[BlackClock "0:01:03"]

1. d4 {[%clk 0:03:00]}  Nf6 {[%clk 0:02:59]} 2. c4 {[%clk 0:03:01]}  g6 {[%clk 0:02:59]} 3. Nc3 {[%clk 0:03:01]}  d5 {[%clk 0:03:00]} 4. cxd5 {[%clk 0:03:02]}  Nxd5 {[%clk 0:03:00]} 5. e4 {[%clk 0:03:03]}  Nxc3 {[%clk 0:03:01]} 6. bxc3 {[%clk 0:03:04]}  Bg7 {[%clk 0:03:01]} 7. Nf3 {[%clk 0:03:04]}  c5 {[%clk 0:03:02]} 8. Be3 {[%clk 0:03:04]}  Qa5 {[%clk 0:03:01]} 9. Qd2 {[%clk 0:03:05]}  Nc6 {[%clk 0:03:02]} 10. Rb1 {[%clk 0:03:05]}  cxd4 {[%clk 0:03:00]} 11. cxd4 {[%clk 0:03:00]}  Qxd2+ {[%clk 0:03:01]} 12. Kxd2 {[%clk 0:02:59]}  O-O {[%clk 0:03:01]} 13. d5 {[%clk 0:02:55]}  Na5 {[%clk 0:03:01]} 14. Bd3 {[%clk 0:02:44]}  b6 {[%clk 0:02:55]} 15. Ke2 {[%clk 0:02:41]}  e6 {[%clk 0:02:48]} 16. Rhd1 {[%clk 0:01:33]}  Rd8 {[%clk 0:02:44]} 17. Bg5 {[%clk 0:01:18]}  f6 {[%clk 0:02:44]} 18. Bd2 {[%clk 0:01:12]}  Nb7 {[%clk 0:02:31]} 19. Kf1 {[%clk 0:01:11]}  Nc5 {[%clk 0:02:31]} 20. Bc4 {[%clk 0:00:50]}  Kf7 {[%clk 0:02:02]} 21. Bb4 {[%clk 0:00:40]}  Bf8 {[%clk 0:01:56]} 22. e5 {[%clk 0:00:26]}  Bb7 {[%clk 0:01:06]} 23. Bxc5 {[%clk 0:00:24]}  Bxc5 {[%clk 0:01:07]} 24. dxe6+ {[%clk 0:00:25]}  Ke7 {[%clk 0:01:08]} 25. exf6+ {[%clk 0:00:21]}  Kxf6 {[%clk 0:01:09]} 26. Rd7 {[%clk 0:00:10]}  Rxd7 {[%clk 0:01:04]} 27. exd7 {[%clk 0:00:10]}  Rd8 {[%clk 0:01:04]} 28. Rd1 {[%clk 0:00:10]}  Bc6 {[%clk 0:01:03]} 0-1


[Site "https://www.chess.com"]